Cogmind - Beta 16.1 @@@ ROGUE MODE // 2026.03.28 @ 22:57:42 Player: KURIIRI Result: Self-destructed Performance ------------- Evolutions (1) 500 Regions Visited (3) 600 Robots Destroyed (36) 180 Value Destroyed (701) 701 Prototype IDs (5) 100 Alien Tech Used (0) 0 Bonus (52) 52 TOTAL SCORE: 2133 Bonus ------- Follower Combat Kills 110 Friendly Fire -58 Cogmind --------- Core Integrity 342/400 Matter 190/300 Energy 280/280 System Corruption 0% Temperature Cool (0) Movement Treading (160) Location -9/Materials Parts ------- > --- POWER (1) -------- Heavy Ion Engine > --- PROPULSION (2) --- Light Treads Light Treads > --- UTILITY (4) ------ Heat Sink Large Storage Unit Improved Terrain Scanner Light Armor Plating > --- WEAPON (2) ------- Improved Assault Rifle Improved Assault Rifle > --- INVENTORY (15) --- Ion Engine Light Treads Wheel Compact Wheel Large Matter Pod (150) Improved Terrain Scanner Light Armor Plating Assault Rifle Assault Rifle Heavy Assault Rifle Improved Light Cannon Rocket Launcher Mining Laser Peak State ------------ > --- POWER ------------ Heavy Ion Engine > --- PROPULSION ------- Light Treads Light Treads > --- UTILITY ---------- Heat Sink Large Storage Unit Improved Terrain Scanner Light Armor Plating > --- WEAPON ----------- Heavy Assault Rifle Improved Assault Rifle > --- INVENTORY -------- Ion Engine Light Treads Wheel Compact Wheel Large Matter Pod Improved Terrain Scanner Light Armor Plating Light Armor Plating Assault Rifle Assault Rifle Improved Assault Rifle Improved Light Cannon Rocket Launcher Mining Laser [Rating: 18] Favorites ----------- Power Light Ion Engine Engine Light Ion Engine Propulsion Light Treads Treads Light Treads Leg Aluminum Leg Utility Large Storage Unit Device Improved Terrain Scanner Storage Large Storage Unit Protection Light Armor Plating Weapon Assault Rifle Energy Gun EM Pulse Gun Energy Cannon Beam Cannon Ballistic Gun Assault Rifle Launcher Rocket Launcher Build | -11 -10 -10 -9 ------- Run | Yrd Mat Min Mat Slots Evolved 2 | . . . 2 Power . | . . . . Propulsion . | . . . . Utility 2 | . . . 2 Weapon . | . . . . Parts Attached 23 | 3 9 1 10 Power 2 | . 1 . 1 Engine 2 | . 1 . 1 Core . | . . . . Reactor . | . . . . Propulsion 4 | 2 . . 2 Treads 4 | 2 . . 2 Leg . | . . . . Wheel . | . . . . Hover . | . . . . Flight . | . . . . Utility 6 | 1 3 . 2 Device 2 | 1 . . 1 Storage 2 | . 2 . . Processor . | . . . . Hackware . | . . . . Protection 2 | . 1 . 1 Artifact . | . . . . Weapon 11 | . 5 1 5 Energy Gun 2 | . 2 . . Energy Cannon 1 | . 1 . . Ballistic Gun 7 | . 2 1 4 Ballistic Cannon . | . . . . Launcher 1 | . . . 1 Special Weapon . | . . . . Impact Weapon . | . . . . Slashing Weapon . | . . . . Piercing Weapon . | . . . . Special Melee Weapon . | . . . . Unidentified Prototypes 2 | . . . 2 Parts Lost 4 | . 1 . 3 Power . | . . . . Propulsion 1 | . . . 1 Utility 1 | . . . 1 Weapon 2 | . 1 . 1 Highest Loss Streak 1 | . 1 . 1 To Critical Strikes . | . . . . Average Backups 12 | 6 11 13 11 Power 1 | 1 1 1 1 Propulsion 2 | 4 2 2 2 Utility 4 | . 4 6 3 Weapon 4 | 1 4 4 4 Tool/Special . | . . . . Unused Backups 10 | . 4 . 6 Power 2 | . 2 . . Propulsion . | . . . . Utility 5 | . 2 . 3 Weapon 3 | . . . 3 Tool/Special . | . . . . Average Slot Usage (%) 99 | . 99 100 96 Engine 13 | . 14 14 11 Treads 26 | . 28 28 20 Device 5 | . 2 . 21 Storage 13 | . 14 14 11 Protection 11 | . 11 14 10 Energy Gun 2 | . 4 . . Energy Cannon 9 | . 9 14 4 Ballistic Gun 14 | . 14 14 17 Peak Build Rating 18 | 9 10 8 18 Average Rating 9 | 6 8 8 13 On Entrance 7 | 6 9 8 8 Avg Prop Armor Cover (%) . | . . . . Naked Turns . | . . . . Heaviest Build 39 | 13 33 33 39 Greatest Support 40 | 40 40 40 40 Greatest Overweight (x) 1 | 1 . . 1 Average Overweight (x) . | . . . . Largest Inventory Capacity 15 | 8 15 15 15 Average Capacity 14 | 8 13 15 15 Most Carried 15 | 6 15 14 14 Average Carried 12 | 5 11 13 11 Final Capacity 15 | 8 15 15 15 Final Carried 14 | 4 14 13 13 Class Distribution -------------------- 95% | Mutant 4% | Scavenger-Mutant Dominant Class ---------------- Mutant | -10/Materials Mutant | -10/Mines Mutant | -9/Materials Resources | -11 -10 -10 -9 ----------- Run | Yrd Mat Min Mat Matter Collected 889 | 196 257 150 286 Remotely . | . . . . Salvage Created 1312 | 130 393 175 614 Parts 77 | 5 17 13 42 Haulers Intercepted 5 | . 1 . 4 Recyclers Shooed 1 | . . . 1 Parts Field Recycled . | . . . . Retrieved Matter . | . . . . Parts Self-Destructed . | . . . . Prevented . | . . . . Parts Restored . | . . . . Kills | -11 -10 -10 -9 ------- Run | Yrd Mat Min Mat Combat Hostiles Destroyed 23 | . 7 7 9 Guns 7 | . 4 2 1 Cannons 9 | . 3 5 1 AOE 7 | . . . 7 Classes Destroyed 9 | 2 4 1 2 Builder 1 | . . . 1 Tunneler 2 | 1 . . 1 Hauler 5 | . 1 . 4 Recycler 4 | 1 . . 3 Watcher 1 | . 1 . . Swarmer 9 | . . 5 4 Grunt 12 | . 6 2 4 Sentry 1 | . . . 1 Subdweller 1 | . 1 . . Best Kill Streak 10 | 2 3 3 10 Combat Bots Only 7 | . 2 3 7 Max Kills in Single Turn 3 | 1 1 1 3 Gunslinging . | . . . . Exploded 2 | . . . 2 Melee . | . . . . Uniques/NPCs Destroyed . | . . . . Combat | -11 -10 -10 -9 -------- Run | Yrd Mat Min Mat Hostile Shots Fired 110 | . 36 33 41 Missed 28 | . 9 10 9 Hits 82 | . 27 23 32 Projectile 82 | . 27 23 32 Critical Strikes 1 | . . . 1 Damage Taken 1022 | . 369 251 402 Core 169 | . 93 18 58 Absorbed by Shields . | . . . . Core Remaining (%) 77 | 100 . 55 . Volleys Fired 104 | 6 29 18 51 Largest 2 | 2 2 2 2 Hottest 80 | 60 80 80 80 Shots Fired 196 | 12 58 32 94 Gun 154 | 12 52 14 76 Cannon 38 | . 6 18 14 Launcher 4 | . . . 4 Special . | . . . . Kinetic 125 | 6 29 14 76 Thermal 42 | . 10 18 14 Explosive 4 | . . . 4 Electromagnetic 25 | 6 19 . . Robot Hit Streak 8 | 4 8 4 7 Robot Miss Streak 4 | 2 3 4 3 Penetration Max . | . . . . Secondary Targets 1 | . 1 . . Max Gunslinging Chain 1 | . 1 . . Shots Hit Robots 117 | 7 38 16 56 Core Hits 53 | 3 17 9 24 Critical Kills . | . . . . Critical Parts Destroyed . | . . . . Critical Strikes . | . . . . Melee Attacks . | . . . . Impact . | . . . . Slashing . | . . . . Piercing . | . . . . Sneak Attacks . | . . . . Combat Hostiles . | . . . . Follow-up Attacks . | . . . . Damage Inflicted 2477 | 91 575 275 1536 Guns 1474 | 91 439 116 828 Cannons 409 | . 91 159 159 Explosions 578 | . 45 . 533 Melee . | . . . . Ramming 16 | . . . 16 Kinetic 1204 | 23 237 116 828 Thermal 492 | . 174 159 159 Explosive 533 | . . . 533 Electromagnetic 232 | 68 164 . . Impact . | . . . . Slashing . | . . . . Piercing . | . . . . Highest Corruption . | . . . . Average Corruption . | . . . . Corruption Purged . | . . . . Corruption Blocked . | . . . . Overload Shots . | . . . . Overflow Damage 4 | . . . 4 Projectiles 3 | . . . 3 Explosions 1 | . . . 1 Melee . | . . . . Knockbacks . | . . . . Impact . | . . . . Kinetic . | . . . . Secondary . | . . . . Self-Inflicted Damage . | . . . . Shots . | . . . . Rammed 3 | . . . 3 Targets Rammed 3 | . . . 3 Kicked . | . . . . Crushed . | . . . . Highest Temperature 247 | . 99 247 23 Average Temperature 59 | . 38 88 7 Received Heat Transfer 390 | . 189 72 129 Effects 1 | . . 1 . Interference 1 | . . 1 . Siege Activations . | . . . . Martial Activations . | . . . . Shielding Activations . | . . . . Robots Disrupted . | . . . . Combat Hostiles . | . . . . Robots Corrupted . | . . . . Combat Hostiles . | . . . . Parts Fried 1 | 1 . . . Impact Corruptions . | . . . . Robots Melted . | . . . . Combat Hostiles . | . . . . Parts Melted 2 | . 1 1 . Heat Transferred 976 | . 310 333 333 Parts Sabotaged . | . . . . Parts Stolen . | . . . . Parts Stripped . | . . . . Power Chain Reactions 1 | . 1 . . Alert | -11 -10 -10 -9 ------- Run | Yrd Mat Min Mat Maximum Alert Level 1 | . . . 1 Low Security (%) 97 | 100 100 100 86 Level 1 2 | . . . 13 Level 2 . | . . . . Level 3 . | . . . . Level 4 . | . . . . Level 5 . | . . . . High Security . | . . . . Max Security . | . . . . Peak Influence 233 | 10 73 84 233 Initial 23 | . . . 23 Average 23 | 1 9 19 75 Influence Increases 928 | 10 230 220 468 Destroy 0b10 Robot/C 540 | . 120 160 260 Destroy 0b10 Robot/NC 80 | 10 10 . 60 Destroy Leader 128 | . 34 30 64 Allied During Kill 27 | . . 15 12 Successful Hack 40 | . 32 . 8 Select Force Hacks 60 | . 30 . 30 Disable Machine 15 | . . . 15 Destroy Structure 23 | . 4 . 19 Lose Combat Pursuer 15 | . . 15 . Influence Decreases 704 | 10 230 160 304 Entered New Map 37 | . . . 37 Time Decay 587 | 10 220 160 197 Lost Part 40 | . 10 . 30 Lost Ally 40 | . . . 40 Squads Dispatched 2 | . 1 . 1 Investigation 2 | . 1 . 1 Extermination . | . . . . Reinforcement . | . . . . Assault . | . . . . Garrison . | . . . . Intercept . | . . . . Searches Triggered . | . . . . Construction Impeded . | . . . . Haulers Reinforced . | . . . . Active Scanning Responses . | . . . . Cargo Convoy Interrupts . | . . . . Stealth | -11 -10 -10 -9 --------- Run | Yrd Mat Min Mat Distress Signals 3 | . 1 . 2 Communications Jammed . | . . . . Distress Signals . | . . . . Times Spotted 36 | . 8 8 20 Peak Tracking Total 7 | . 2 3 7 Tactical Retreats 1 | . . 1 . Traps | -11 -10 -10 -9 ------- Run | Yrd Mat Min Mat Traps Triggered . | . . . . Indirectly . | . . . . Trap Hack Attempts . | . . . . Triggered . | . . . . Disarmed . | . . . . Reprogrammed 2 | . 2 . . Reused . | . . . . Traps Extracted . | . . . . Installed . | . . . . Triggered . | . . . . Machines | -11 -10 -10 -9 ---------- Run | Yrd Mat Min Mat Machines Disabled 1 | . . . 1 Max in Single Turn 1 | . . . 1 Machines Repaired . | . . . . Machines Dismantled . | . . . . Machines Sabotaged . | . . . . Overloaded Fab Kills . | . . . . Hacking | -11 -10 -10 -9 --------- Run | Yrd Mat Min Mat Machines Accessed 12 | . 9 . 3 Terminals 10 | . 8 . 2 Fabricators . | . . . . Repair Stations . | . . . . Recycling Units 2 | . 1 . 1 Scanalyzers . | . . . . Garrison Access . | . . . . Total Hacks 38 | . 34 . 4 Successful 22 | . 20 . 2 Failed 15 | . 13 . 2 Catastrophic . | . . . . Database Lockouts 1 | . 1 . . Manual 26 | . 22 . 4 Terminals 36 | . 33 . 3 Fabricators . | . . . . Repair Stations . | . . . . Recycling Units 2 | . 1 . 1 Scanalyzers . | . . . . Garrison Access . | . . . . Terminal Hacks 10 | . 9 . 1 Robot Analysis 1 | . 1 . . Prototype ID Bank 2 | . 2 . . Branch Access Points 1 | . . . 1 Terminal Index 1 | . 1 . . Recycling Unit Index 1 | . 1 . . Alert Level 1 | . 1 . . Locate Traps 1 | . 1 . . Reprogram Traps 1 | . 1 . . Zone Layout 1 | . 1 . . Fabricator Hacks . | . . . . Repair Station Hacks . | . . . . Recycling Unit Hacks . | . . . . Scanalyzer . | . . . . Garrison Access Hacks . | . . . . Unauthorized Hacks 12 | . 11 . 1 Terminals 10 | . 10 . . Track 1 | . 1 . . Assimilate 1 | . 1 . . Botnet 2 | . 2 . . Operators 1 | . 1 . . Skim 5 | . 5 . . Fabricators . | . . . . Repair Stations . | . . . . Recycling Units 2 | . 1 . 1 Tunnel 2 | . 1 . 1 Scanalyzers . | . . . . Garrison Access . | . . . . Data Cores Recovered . | . . . . Used . | . . . . Hacking Detections 8 | . 7 . 1 Full Trace Events . | . . . . Feedback Events . | . . . . Feedback Blocked . | . . . . Robot Schematics Acquired . | . . . . Robots Built . | . . . . Authchips . | . . . . Time . | . . . . Total Robot Build Rating . | . . . . Part Schematics Acquired . | . . . . Parts Built . | . . . . Authchips . | . . . . Time . | . . . . Total Part Build Rating . | . . . . Part Studies Acquired . | . . . . Parts Repaired . | . . . . Time . | . . . . Parts Recycled . | . . . . Recycled Matter . | . . . . Retrieved Matter . | . . . . Retrieved Components . | . . . . Parts Scanalyzed . | . . . . Part Schematics Acquired . | . . . . Parts Damaged . | . . . . Bothacking | -11 -10 -10 -9 ------------ Run | Yrd Mat Min Mat Used RIF Installer . | . . . . Robots Hacked . | . . . . Non-combat . | . . . . Combat . | . . . . Robot Hacks Applied . | . . . . Relay Couplers Released . | . . . . Fabnet Peak Effective % . | . . . . Robots Rewired . | . . . . Allies Hacked . | . . . . Hacks Repelled . | . . . . Allies | -11 -10 -10 -9 -------- Run | Yrd Mat Min Mat Total Allies 3 | . 1 2 . Largest Group 2 | . 1 2 2 Highest-Rated Group 45 | . 10 45 45 Highest-Rated Ally 31 | . 10 31 31 Total Orders 4 | . 4 . . STAY 2 | . 2 . . FOLLOW 2 | . 2 . . Ally Attacks 46 | . . 11 35 Total Damage 524 | . . 82 442 Kills 8 | . . 1 7 Allies Corrupted . | . . . . Allies Melted . | . . . . Intel | -11 -10 -10 -9 ------- Run | Yrd Mat Min Mat Active Infowar (turns) 761 | 17 303 . 441 Terrain 761 | 17 303 . 441 Robot Analysis Total 1 | . 1 . . Derelict Logs Recovered 2 | . . 2 . Drone Launches . | . . . . Drone Recoveries . | . . . . Exploration | -11 -10 -10 -9 ------------- Run | Yrd Mat Min Mat Turns Passed 2643 | 48 1479 674 442 Spaces Moved 1289 | 21 720 388 160 Core . | . . . . Treads 1269 | 1 720 388 160 Legs 20 | 20 . . . Wheels . | . . . . Hover . | . . . . Flight . | . . . . Fastest Speed 120 | 120 160 160 160 Average Speed 160 | 125 160 160 167 Slowest Speed 240 | 190 160 160 240 Overloaded Moves . | . . . . Propulsion Burnouts . | . . . . Robots Hopped . | . . . . Potential Cave-ins . | . . . . Cave-ins Triggered . | . . . . Exploration Rate (%) 51 | 3 92 88 23 Regions Visited 3 Branch Regions 1 Pre-discovered Areas 4 | . 3 . 1 Known Exits Taken 1 | . 1 . . Unknown Exits Taken 2 | 1 . 1 . Scrap Searched 1 | . . 1 . Spaces Dug . | . . . . Terrain Destroyed 24 | . 3 . 21 Melee . | . . . . Projectile . | . . . . AOE 24 | . 3 . 21 Terrain Rammed . | . . . . Walls Destroyed . | . . . . Machines Disabled . | . . . . Actions | -11 -10 -10 -9 --------- Run | Yrd Mat Min Mat Total 1662 | 31 988 409 234 Wait 223 | . 216 2 5 Move 1286 | 20 719 387 160 Hop . | . . . . Pick Up 14 | . 11 . 3 Fast Attach 2 | 1 . . 1 Attach 8 | 2 2 . 4 Detach . | . . . . Swap 15 | . 7 1 7 Drop 7 | 2 4 1 . Fire 104 | 6 29 18 51 Melee . | . . . . Ram . | . . . . Kick . | . . . . Crush 3 | . . . 3 Escape Stasis . | . . . . Rewire . | . . . . Trap . | . . . . Miscellaneous . | . . . . Route ------- -11/Scrapyard -10/Materials (discovered 5 exits: *Mat x3 / *Min / [*Sub]) -10/Mines (discovered 2 exits: *Mat / [*Exi]) -9/Materials (discovered 4 exits: Mat x3 / *Min) History --------- Turn | Location | Event 20 | -11/Scrapyard | Discovered new exit (range 3) 49 | -11/Scrapyard | Entered Materials 318 | -10/Materials | Build established: Mutant 422 | -10/Materials | Discovered new exit (range 9) 523 | -10/Materials | Central database locked down 585 | -10/Materials | Discovered new exit (range 16) 649 | -10/Materials | Derelicts attacked the area 949 | -10/Materials | Discovered new exit (range 9) 1071 | -10/Materials | Learned 4 Recycling zone layouts 1132 | -10/Materials | Learned location of Recycling (-7) 1163 | -10/Materials | Discovered new exit (range 13) 1184 | -10/Materials | Learned location of 1 exit from Storage 1256 | -10/Materials | Identified exit to Mines 1296 | -10/Materials | Learned location of 2 exits from Materials 1344 | -10/Materials | Learned location of 2 exits from Materials 1528 | -10/Materials | Entered Mines 1528 | -10/Mines | Accompanied by 1 ally 1972 | -10/Mines | Deemed a non-threat by the Exiles lab entrance 1972 | -10/Mines | Discovered new exit (range 5) 2073 | -10/Mines | Learned 8 Materials zone layouts 2095 | -10/Mines | Discovered new exit (range 5) 2202 | -10/Mines | Entered Materials 2202 | -9/Materials | Accompanied by 2 allies 2202 | -9/Materials | Evolved 2 slots: Utility x2 2203 | -9/Materials | Identified exit to Materials 2203 | -9/Materials | Identified exit to Mines 2207 | -9/Materials | Led the pair of lost Derelicts to an unsafe place 2608 | -9/Materials | Destroyed 7 combat bots 2644 | -9/Materials | Self-destructed Last Messages --------------- 02594_ Acquired 5 matter. 02595_ U-05 Engineer lays Concrete. 02596_ Acquired 10 matter. 02596_ U-05 Engineer lays Concrete. 02597_ U-05 Engineer builds a Wall. 02599_ U-05 Engineer lays Concrete. 02599_ R-06 Scavenger collects Aluminum Leg. 02599_ Acquired 18 matter. 02600_ U-05 Engineer lays Concrete. 02601_ U-05 Engineer builds a Wall. 02603_ U-05 Engineer lays Concrete. 02605_ U-05 Engineer builds a Wall. 02606_ U-05 Engineer lays Concrete. 02611_ A-02 Transporter destroyed. 02612_ U-05 Engineer lays Concrete. 02644_ Connecting with Terminal... >>Access(Branch) Found 1 branch access point: (48,49) Mines Map updated. Map ----- +----------------------------------------------------+ | ?????????????????????????????????????????????????? | | ?????????????????????????????????????????????????? | | ?????????????????????????????????????????????????? | | ?????????????????????????????????????????????????? | | ?????????????????????????????????????????????????? | | ?????????????????????????????????????????????????? | | ?????????????????????????????????????????????????? | | ?????????????????????????????????????????????????? | | ?????????????????????????????????????????????????? | | ?????????????????????????????????????????????????? | | ?????????????????????????????????????????????????? | | ??????????????????????????????????????? ?????????? | | ??????????????????????????????????????? ?????????? | | ?????# """## ## "" # ## ########## | | ?????# ## ## ""S # ## ## | | ?################ ## "" # # # | | ?# #????# ## # """ # + | | ?# """ """ ##???# + """ """ # """ + # | | ?# """ """ #???# ## """ """ # """ # # | | ?# """ """ ##???# ## """ """ # # ######### | | ?# """ #????### ## ####### !* #### | | ?# """ ######## ##############???#^ ** # | | ?# # # ## #???# *= + | | ?# # # ## ]#?###%%* # | | ?#######+### # + """ #?# !* # | | ?????# # # ## @ """ #?# # | | ?????# # # ## "T" """ ### " " # | | ?????# " + # ## """ #?# "R" # | | ?????# # # ## #?# """ # | | ?????# # # #######+######## ####### | | ?????## ######### #????##### | | ??????# # / ######## #????????? | | ??????# # # ##??##?# #????#???? | | ?????? / # ########?????## ####????#? | | ??????# # # ######????#??# = *"""#?????? | | ??????# ######### ## #??#?##?#!|* "#?????? | | ?????## ##?????## ## ##??#?###! = |"##?##?? | | ?????# ####### #???????# [> ""##??##? | | ?????# ???????? ???#???????#=* [ !"#?##??? | | ?????# ??????????? ??#??#??# * "##????? | | ?????# ????????????#???????# !"""####### | | ?????# ####?????????????#??????## ! ####?# | | ?????#######??????? #????######### !!!#????# | | ??????????????????# ????## """ ! !##??## | | ??????????????????# ??#?# "Y" =!!# #??# "" | | ??????????????????# ?????# !!!% #### "" | | ??????????????????# ????## %%%[ #??# "" | | ??????????????????# ?????# [! !##### | | ??????????????????# #???## = T" # | | ???????????????#??# #??#?#[ %* [ # | +----------------------------------------------------+ Best States ------------- Heat Dissipation 38 Energy Generation 14 Energy Capacity 280 Matter Stores 300 Matter Capacity 300 Sight Range 16 Terrain Scan Range 16 Terrain Scan Density 10 Armor Coverage 150 Evasion (%) 55 Recoil Reduction 2 Item Schematics ----------------- None Robot Schematics ------------------ None Fabricated ------------ Nothing Repaired ---------- Nothing Studied --------- None Alien Tech Used ----------------- None Achievements -------------- None Challenges ------------ None Game ------ Seed DisposableElectronSlayer Manual? 0 Play Time 00:13:47 Cumulative 370.7 hours Start 2026.03.28 @ 22:44:19 End 2026.03.28 @ 22:57:42 Sessions 1 Manual Loads 0 Difficulty Rogue Special Mode None Game No. 300 Rogue 264 Adventurer 36 Explorer 0 Win Type - Total 5 Types 2/0/0/1/0/0/0/2/0/0 Lore% 68 Gallery% 65 Achievement% 54 Wizard Run 0 Options --------- Layout 1 ASCII 0 Keyboard 0 Movement Numpad Keybinds 0 Fullscreen 1 Font 48/Smallcaps Map View 50x35 Zoom Use 0% Tactical HUD 1 Map Filters NONE Filters NONE Steam 1 RUN: a655afaf-f957-4abc-a186-3c7bbb489349